fUST/lending_fUST_20251119
["ID","MTS","AMOUNT","RATE_DAILY","PERIOD"]
[394404152,1763533843935,-522.39,0.00044383,2]
[394404153,1763533843944,-500.0,0.00044521,30]
[394404154,1763533843953,-518.94248816,0.00044534,30]
[394404155,1763533843962,-55895.13,0.00044607,12]
[394404156,1763533843971,-20271.36,0.00044607,12]
[394404157,1763533843981,-500.0,0.00044614,30]
[394404158,1763533843989,-500.0,0.00044639,60]
[394404159,1763533843998,-522.55527512,0.00044657,2]
[394404160,1763533844007,-500.0,0.0004471,30]
[394404161,1763533844017,-500.0,0.00044799,30]
[394404162,1763533844026,-500.0,0.00044875,30]
[394404163,1763533844036,-500.0,0.00044904,30]
[394404164,1763533844045,-950.0,0.00044932,10]
[394404165,1763533844055,-6081.56,0.00044981,2]
[394404166,1763533844064,-151.0,0.00044981,120]
[394404167,1763533844073,-151.0,0.00044981,120]
[394404168,1763533844082,-151.0,0.00044981,120]
[394404169,1763533844092,-151.0,0.00044981,120]
[394404170,1763533844101,-151.0,0.00044981,7]
[394404171,1763533844110,-151.0,0.00044981,120]
[394404172,1763533844119,-151.0,0.00044981,120]
[394404173,1763533844128,-151.0,0.00044981,7]
[394404174,1763533844137,-151.0,0.00044981,7]
[394404175,1763533844146,-244.943787,0.00044981,120]
[394404176,1763533844156,-244.943787,0.00044981,120]
[394404177,1763533844172,-244.943787,0.00044981,120]
[394404178,1763533844192,-244.943787,0.00044981,120]
[394404179,1763533844200,-151.0,0.00044981,120]
[394404180,1763533844209,-151.0,0.00044981,120]
[394404181,1763533844219,-151.0,0.00044981,120]
[394404182,1763533844228,-285.795859,0.00044981,120]
[394404183,1763533844237,-151.0,0.00044981,120]
[394404184,1763533844247,-500.0,0.00044982,30]
[394404185,1763533844256,-500.0,0.00044984,30]
[394404186,1763533844265,-6135.23890557,0.00045,2]
[394404187,1763533844274,-70000.0,0.00045,120]
[394404188,1763533844283,-552.0,0.00045,120]
[394404189,1763533844293,-2181.49473919,0.00045,2]
[394404190,1763533844302,-151.0,0.00045,120]
[394404191,1763533844311,-151.0,0.00045,120]
[394404192,1763533844320,-151.0,0.00045,120]
[394404193,1763533844329,-175.080425,0.00045016,60]
[394404194,1763533844339,-354.53183,0.00045016,60]
[394404195,1763533844348,-168.82468,0.00045016,60]
[394404196,1763533844357,-155.838167,0.00045016,60]
[394404197,1763533844367,-500.0,0.00045021,60]
[394404198,1763533844376,-504.85951833,0.00045182,60]
[394404199,1763533844385,-183.591297,0.00045205,120]
[394404200,1763533844394,-500.0,0.00045219,60]
[394404201,1763533844403,-135370.02,0.00045256,12]
[394404202,1763533844412,-293.85068442,0.00045262,60]
[394404203,1763533844421,-500.0,0.00045264,60]
[394404204,1763533844430,-406.14359685,0.00045286,2]
[394404205,1763533844440,-500.0,0.00045364,60]
[394404206,1763533844449,-500.0,0.00045397,60]
[394404207,1763533844458,-208.63138285,0.000454,120]
[394404208,1763533844467,-1000.0,0.000454,120]
[394404209,1763533844475,-1000.0,0.000454,120]
[394404210,1763533844484,-1028.6,0.000454,120]
[394404211,1763533844494,-2000.0,0.00045411,21]
[394404212,1763533844503,-46007.2091,0.0004544,30]
[394404213,1763533844514,-500.0,0.00045441,60]
[394404214,1763533844524,-500.0,0.00045448,60]
[394404215,1763533844533,-199.0,0.00045479,30]
[394404216,1763533844542,-500.0,0.00045543,60]
[394404217,1763533844554,-230257.40403823,0.00045556,30]
[394404218,1763533845002,-209.21259004,0.00015809,2]
[394404219,1763533845011,-12064.97977691,0.0001818,2]
[394404220,1763533845020,-12064.97977691,0.00018703,2]
[394404221,1763533845029,-3206.9698535,0.00018726,2]
[394404222,1763533845038,-12064.97977691,0.00019226,2]
[394404223,1763533845047,-12064.97977691,0.00019748,2]
[394404224,1763533845056,-500.0,0.00019999,2]
[394404225,1763533845065,-500.0,0.00019999,2]
[394404226,1763533845073,-500.0,0.00019999,2]
[394404227,1763533845082,-295.19710796,0.00019999,2]
[394404228,1763533845092,-500.0,0.00019999,2]
[394404229,1763533845101,-12064.97977691,0.00020271,2]
[394404230,1763533845110,-3206.9698535,0.00020771,2]
[394404231,1763533845119,-12064.97977691,0.00020793,2]
[394404232,1763533845129,-12064.97977691,0.00021316,2]
[394404233,1763533845137,-400.87691731,0.000221,2]
[394404234,1763533845146,-6933.91976297,0.00022633,2]
[394404235,1763533845155,-7190.4747942,0.00022688,2]
[394404236,1763533845165,-7456.52236159,0.00022743,2]
[394404237,1763533845174,-3206.9698535,0.00022816,2]
[394404238,1763533845183,-209.21259004,0.00023414,2]
[394404239,1763533845191,-3206.9698535,0.00024861,2]
[394404240,1763533845201,-209.21259004,0.0003102,2]
[394404241,1763533845210,-5264.75,0.00032877,10]
[394404242,1763533845219,-151.894799,0.00034236,31]
[394404243,1763533845230,-162.753913,0.00034236,31]
[394404244,1763533845240,-209.21259004,0.00038625,2]
[394404245,1763533845250,-172.12512022,0.0003919,2]
[394404246,1763533845259,-4387.3,0.0003999,10]
[394404247,1763533845269,-500.0,0.00039999,7]
[394404248,1763533845279,-500.0,0.00039999,31]
[394404249,1763533845288,-500.0,0.00039999,31]
[394404250,1763533845297,-263.28858913,0.00039999,31]
[394404251,1763533845306,-500.0,0.00039999,7]
[394404252,1763533845316,-500.0,0.00039999,31]
[394404253,1763533845325,-355.45991859,0.00039999,7]
[394404254,1763533845336,-500.0,0.00039999,31]
[394404255,1763533845345,-292.89297073,0.00039999,31]
[394404256,1763533845355,-500.0,0.00039999,7]
[394404257,1763533845364,-500.0,0.00039999,7]
[394404259,1763533845373,-500.0,0.00039999,7]
[394404261,1763533845382,-500.0,0.00039999,7]
[394404263,1763533845392,-500.0,0.00039999,7]
[394404265,1763533845401,-500.0,0.00039999,7]
[394404267,1763533845411,-500.0,0.00039999,7]
[394404269,1763533845420,-500.0,0.00039999,7]
[394404270,1763533845429,-500.0,0.00039999,7]
[394404271,1763533845439,-500.0,0.00039999,7]
[394404272,1763533845448,-500.0,0.00039999,7]
[394404273,1763533845457,-500.0,0.00039999,7]
[394404274,1763533845466,-6904.47525677,0.00044513,28]
[394404275,1763533845476,-769751.48844093,0.00045556,30]
[394404276,1763533845485,-151.0,0.00045556,120]
[394404277,1763533845494,-151.0,0.00045556,120]
[394404278,1763533845504,-151.0,0.00045556,120]
[394404279,1763533845516,-151.0,0.00045556,120]
[394404280,1763533845526,-151.0,0.00045556,120]
[394404281,1763533845535,-151.0,0.00045556,2]
[394404282,1763533845544,-151.0,0.00045556,2]
[394404283,1763533845554,-151.0,0.00045556,120]
[394404284,1763533845563,-151.0,0.00045556,2]
[394404285,1763533845572,-270.85907,0.00045556,2]
[394404287,1763533845582,-151.0,0.00045556,120]
[394404290,1763533845594,-151.0,0.00045556,120]
[394404292,1763533845603,-151.0,0.00045556,120]
[394404294,1763533845612,-185.585788,0.00045556,120]
[394404296,1763533845621,-151.0,0.00045556,120]
[394404298,1763533845630,-151.0,0.00045556,120]
[394404300,1763533845639,-151.0,0.00045556,120]
[394404302,1763533845648,-197.291824,0.00045556,120]
[394404305,1763533845665,-151.0,0.00045556,7]
[394404308,1763533845676,-151.0,0.00045556,120]
[394404309,1763533845686,-172.727075,0.00045556,120]
[394404310,1763533845695,-151.0,0.00045556,7]
[394404311,1763533845705,-151.0,0.00045556,7]
[394404313,1763533845714,-244.943787,0.00045556,120]
[394404315,1763533845724,-244.943787,0.00045556,120]
[394404317,1763533845733,-244.943787,0.00045556,120]
[394404319,1763533845743,-244.943781,0.00045556,120]
[394404321,1763533845752,-225.683307,0.00045556,120]
[394404322,1763533845762,-151.0,0.00045556,120]
[394404323,1763533845771,-151.0,0.00045556,120]
[394404325,1763533845780,-173.274677,0.00045556,120]
[394404327,1763533845789,-151.0,0.00045556,120]
[394404328,1763533845799,-158.12604,0.00045556,120]
[394404330,1763533845808,-151.0,0.00045556,120]
[394404332,1763533845817,-500.0,0.00045567,60]
[394404334,1763533845826,-500.0,0.00045576,60]
[394404335,1763533845838,-500.0,0.00045589,60]
[394404337,1763533845847,-500.0,0.00045635,60]
[394404339,1763533845857,-500.0,0.00045646,60]
[394404341,1763533845867,-500.0,0.00045647,60]
[394404342,1763533845878,-507.49287842,0.00045702,60]
[394404343,1763533845888,-500.0,0.00045717,60]
[394404344,1763533845898,-353.05085659,0.00045735,60]
[394404345,1763533845907,-304.99088798,0.00045753,10]
[394404346,1763533845917,-664.56635379,0.00045759,120]
[394404347,1763533845926,-500.0,0.00045815,60]
[394404348,1763533845935,-500.0,0.00045845,60]
[394404349,1763533845944,-500.0,0.00045917,60]
[394404350,1763533845954,-179.2500421,0.00045932,30]
[394404351,1763533845963,-154.4252435,0.00045932,30]
[394404352,1763533845972,-164.4733938,0.00045932,30]
[394404353,1763533845982,-164.4733938,0.00045932,30]
[394404354,1763533845991,-164.4733938,0.00045932,30]
[394404355,1763533846000,-164.4733938,0.00045932,30]
[394404357,1763533846010,-164.4733938,0.00045932,30]
[394404359,1763533846019,-164.4733938,0.00045932,30]
[394404361,1763533846028,-164.4733938,0.00045932,30]
[394404362,1763533846037,-164.4733938,0.00045932,30]
[394404364,1763533846047,-164.4733938,0.00045932,30]
[394404366,1763533846057,-500.0,0.00045938,60]
[394404368,1763533846066,-500.0,0.00045968,60]
[394404370,1763533846075,-108302.82455784,0.0004599,5]
[394404372,1763533846084,-2000.0,0.00046,120]
[394404374,1763533846094,-200.0,0.00046011,120]
[394404375,1763533846103,-500.0,0.00046041,60]
[394404377,1763533846121,-500.0,0.00046047,60]
[394404378,1763533846135,-500.0,0.00046091,60]
[394404379,1763533846148,-1132.720159,0.00046143,2]
[394404380,1763533846162,-589.63066875,0.0004623,2]
[394404381,1763533846176,-258.51654,0.0004623,2]
[394404382,1763533846187,-208.51777164,0.0004623,2]
[394404383,1763533846198,-209.42180263,0.0004623,2]
[394404384,1763533846212,-2151.0,0.00046283,2]
[394404385,1763533846225,-414.0,0.00046283,2]
[394404386,1763533846237,-500.0,0.0004635,60]
[394404387,1763533846249,-500.0,0.00046366,60]
[394404388,1763533846266,-500.0,0.00046409,60]
[394404389,1763533846279,-500.0,0.00046427,60]
[394404390,1763533846292,-200.0,0.00046446,120]
[394404391,1763533846305,-500.0,0.00046505,60]
[394404392,1763533846319,-837.00259935,0.00046555,60]
[394404393,1763533846332,-500.0,0.00046566,60]
[394404394,1763533846344,-500.0,0.00046614,60]
[394404395,1763533846356,-499.3,0.00046768,60]
[394404396,1763533846372,-789.57049505,0.00046773,60]
[394404397,1763533846385,-500.0,0.00046799,60]
[394404398,1763533846397,-516.87375179,0.00046835,60]
[394404399,1763533846409,-199.0,0.00046849,30]
[394404400,1763533846422,-500.0,0.0004694,60]
[394404401,1763533846435,-2000.0,0.00046941,21]
[394404402,1763533846446,-1602.10450109,0.00047,2]
[394404403,1763533846458,-521.05629397,0.0004701,60]
[394404404,1763533846468,-920.43729036,0.00047025,60]
[394404405,1763533846478,-662612.7563,0.0004744,30]
[394404406,1763533846490,-151.0,0.0004744,120]
[394404407,1763533846501,-151.0,0.0004744,120]
[394404408,1763533846516,-151.0,0.0004744,120]
[394404409,1763533846527,-151.0,0.0004744,120]
[394404410,1763533846539,-151.0,0.0004744,2]
[394404411,1763533846551,-151.0,0.0004744,2]
[394404412,1763533846563,-151.0,0.0004744,120]
[394404413,1763533846576,-151.0,0.0004744,2]
[394404414,1763533846590,-151.0,0.0004744,120]
[394404415,1763533846603,-151.0,0.0004744,120]
[394404416,1763533846615,-151.0,0.0004744,120]
[394404417,1763533846626,-700.0,0.00047475,120]
[394404418,1763533846636,-6950.35,0.00047627,2]
[394404419,1763533846646,-696.89660884,0.00047759,120]
[394404420,1763533846656,-50000.0,0.00048,30]
[394404421,1763533846666,-78466.0,0.00048,120]
[394404422,1763533846677,-150.02105414,0.00048,120]
[394404423,1763533846692,-357.39,0.0004811,50]
[394404424,1763533846705,-199.0,0.00048219,30]
[394404425,1763533846718,-272.525,0.00048448,83]
[394404426,1763533846729,-242.8337567,0.0004847,21]
[394404427,1763533846739,-175.080425,0.00048623,7]
[394404428,1763533846750,-354.53183,0.00048623,7]
[394404429,1763533846762,-168.82468,0.00048623,7]
[394404430,1763533846773,-155.838167,0.00048623,7]
[394404431,1763533846785,-163.0,0.00048767,120]
[394404432,1763533846797,-1000.0,0.000488,120]
[394404433,1763533846807,-1000.0,0.000488,120]
[394404434,1763533846817,-914.76,0.000488,120]
[394404435,1763533846827,-426.65,0.000488,120]
[394404436,1763533846839,-200.0,0.000489,120]
[394404437,1763533846851,-200.0,0.00048902,120]
[394404438,1763533846862,-1007.31706184,0.00049,120]
[394404439,1763533846874,-164.0,0.00049,120]
[394404440,1763533846886,-40290.0,0.000492,120]
[394404441,1763533846899,-300.0,0.00049205,60]
[394404442,1763533846910,-571.672,0.00049283,2]
[394404443,1763533846922,-414.0,0.00049283,2]
[394404444,1763533846934,-1000.0,0.00049315,120]
[394404445,1763533846946,-530090.2051,0.0004944,30]
[394404446,1763533846957,-151.0,0.0004944,120]
[394404447,1763533846969,-151.0,0.0004944,120]
[394404448,1763533846979,-205.519645,0.0004944,120]
[394404449,1763533846991,-151.0,0.0004944,2]
[394404450,1763533847002,-151.0,0.0004944,2]
[394404451,1763533847012,-151.0,0.0004944,120]
[394404452,1763533847024,-151.0,0.0004944,2]
[394404453,1763533847035,-151.0,0.0004944,120]
[394404454,1763533847046,-151.0,0.0004944,120]
[394404455,1763533847057,-151.0,0.0004944,120]
[394404456,1763533847069,-6904.47525677,0.00049455,28]
[394404457,1763533847079,-1556514.40053823,0.000495,7]
[394404458,1763533847118,-12064.97977691,0.00021839,2]
[394404459,1763533847127,-10298.45936437,0.00022361,2]
[394404460,1763533847138,-1766.52041254,0.00022361,2]
[394404461,1763533847148,-7228.94084561,0.00022884,2]
[394404462,1763533939229,-800.0,0.000158,2]
[394404463,1763533939255,-500.0,0.00018956,2]
[394404464,1763533939279,-500.0,0.00018956,2]
[394404465,1763533939303,-500.0,0.00018956,2]
[394404466,1763533939330,-300.0,0.00019182,2]
[394404467,1763533939358,-887400.0,0.00019183,2]
[394404468,1763534056360,100000.0,0.0003919,30]
[394404469,1763534118392,100000.0,0.00039357,30]
[394404470,1763534132505,278.0675522,0.00032876,120]
[394404471,1763534142661,299.3,0.00032877,120]
[394404472,1763534180403,100000.0,0.00039357,30]
[394404473,1763534242350,100000.0,0.00039357,30]
[394404475,1763534280141,279.74,0.00014735,2]
[394404476,1763534304435,100000.0,0.00039357,30]
[394404500,1763535031758,150.0,0.000161,3]
[394404527,1763535032048,-326.67928526,0.00015809,2]
[394404529,1763535032057,-150.0,0.00015855,2]
[394404531,1763535032067,-899.19702744,0.000159,2]
[394404532,1763535032076,-162.912725,0.00017769,2]
[394404534,1763535032086,-177.0,0.00017855,2]
[394404536,1763535032095,-300.0,0.00019566,2]
[394404538,1763535032105,-1000.0,0.00019768,2]
[394404540,1763535032114,-204.0,0.00019855,2]
[394404542,1763535032123,-178.4844399,0.00020639,2]
[394404544,1763535032133,-300.0,0.00020979,2]
[394404546,1763535032142,-2694.74,0.0002098,10]
[394404548,1763535032152,-4705.07,0.0002098,10]
[394404550,1763535032161,-3920.89,0.0002098,10]
[394404551,1763535032170,-1200.0,0.00020989,2]
[394404553,1763535032180,-100000.0,0.0002099,2]
[394404555,1763535032189,-2227.03792801,0.00020999,2]
[394404557,1763535032198,-328.0,0.00021078,2]
[394404559,1763535032207,-400.87691731,0.0002109,10]
[394404560,1763535032216,-500.0,0.00021099,2]
[394404561,1763535032225,-500.0,0.00021099,2]
[394404562,1763535032236,-611.57255394,0.00021099,2]
[394404563,1763535032245,-500.0,0.00021099,2]
[394404564,1763535032256,-500.0,0.00021099,2]
[394404565,1763535032265,-500.0,0.00021099,2]
[394404566,1763535032275,-500.0,0.00021099,2]
[394404567,1763535032284,-500.0,0.00021099,2]
[394404568,1763535032293,-500.0,0.00021099,2]
[394404569,1763535032305,-500.0,0.00021099,2]
[394404570,1763535032314,-500.0,0.00021099,2]
[394404571,1763535032323,-500.0,0.00021099,2]
[394404572,1763535032332,-198.6878984,0.00021099,2]
[394404573,1763535032342,-500.0,0.00021099,2]
[394404574,1763535032351,-500.0,0.00021099,2]
[394404575,1763535032361,-500.0,0.00021099,2]
[394404576,1763535032370,-500.0,0.00021099,2]
[394404577,1763535032379,-500.0,0.00021099,2]
[394404578,1763535032389,-500.0,0.00021099,2]
[394404579,1763535032398,-500.0,0.00021099,2]
[394404580,1763535032407,-500.0,0.00021099,2]
[394404581,1763535032417,-500.0,0.00021099,2]
[394404582,1763535032426,-500.0,0.00021099,2]
[394404583,1763535032435,-500.0,0.00021099,2]
[394404584,1763535032444,-500.0,0.00021099,2]
[394404585,1763535032454,-500.0,0.00021099,2]
[394404586,1763535032464,-500.0,0.00021099,2]
[394404587,1763535032473,-500.0,0.00021099,2]
[394404588,1763535032483,-500.0,0.00021099,2]
[394404589,1763535032492,-500.0,0.00021099,2]
[394404590,1763535032502,-500.0,0.00021099,2]
[394404591,1763535032512,-500.0,0.00021099,2]
[394404592,1763535032521,-500.0,0.00021099,2]
[394404593,1763535032531,-500.0,0.00021099,2]
[394404594,1763535032540,-500.0,0.00021099,2]
[394404595,1763535032551,-500.0,0.00021099,2]
[394404596,1763535032560,-500.0,0.00021099,2]
[394404597,1763535032569,-500.0,0.00021099,2]
[394404598,1763535032578,-500.0,0.00021099,2]
[394404599,1763535032588,-500.0,0.00021099,2]
[394404600,1763535032597,-500.0,0.00021099,2]
[394404601,1763535032606,-500.0,0.00021099,2]
[394404602,1763535032616,-161.11746543,0.00021099,2]
[394404603,1763535032625,-500.0,0.00021099,2]
[394404604,1763535032635,-500.0,0.00021099,2]
[394404605,1763535032644,-500.0,0.00021099,2]
[394404606,1763535032653,-500.0,0.00021099,2]
[394404607,1763535032662,-499.99999999,0.00021099,2]
[394404608,1763535032672,-255.08447484,0.00021099,2]
[394404609,1763535032681,-568476.51165804,0.000211,2]
[394404635,1763535037969,-3267.41,0.0002098,10]
[394404637,1763535037979,-321523.48834196,0.000211,2]
[394404640,1763535037989,-500.0,0.00021173,2]
[394404641,1763535037998,-500.0,0.00021173,2]
[394404643,1763535038007,-559.54071096,0.00021173,2]
[394404645,1763535038016,-500.0,0.00021173,2]
[394404647,1763535038026,-507.6968814,0.00021173,2]
[394404649,1763535038035,-500.0,0.00021173,2]
[394404651,1763535038044,-500.0,0.00021173,2]
[394404653,1763535038054,-506.33799268,0.00021173,2]
[394404655,1763535038064,-500.0,0.00021173,2]
[394404657,1763535038073,-500.0,0.00021173,2]
[394404659,1763535038084,-500.0,0.00021173,2]
[394404661,1763535038093,-500.0,0.00021173,2]
[394404663,1763535038103,-500.0,0.00021173,2]
[394404665,1763535038112,-500.0,0.00021173,2]
[394404667,1763535038121,-153.84547182,0.00021173,2]
[394404669,1763535038131,-500.0,0.00021173,2]
[394404671,1763535038140,-500.0,0.00021173,2]
[394404673,1763535038150,-500.0,0.00021173,2]
[394404675,1763535038159,-504.42164991,0.00021173,2]
[394404677,1763535038168,-500.0,0.00021173,2]
[394404679,1763535038178,-500.0,0.00021173,2]
[394404681,1763535038188,-263.70606165,0.00021173,2]
[394404683,1763535038197,-506.10151376,0.00021173,2]
[394404685,1763535038206,-500.0,0.00021173,2]
[394404687,1763535038215,-500.0,0.00021198,2]
[394404689,1763535038225,-50000.0,0.00021198,2]
[394404691,1763535038234,-500.0,0.00021199,2]
[394404693,1763535038243,-495.42104687,0.00021199,2]
[394404695,1763535038253,-519.28739441,0.00021199,2]
[394404697,1763535038263,-31833.5886462,0.000212,2]
[394404699,1763535038272,-894.0,0.00021201,2]
[394404701,1763535038281,-400.0,0.00021321,2]
[394404703,1763535038290,-894.0,0.00021324,2]
[394404705,1763535038299,-894.0,0.00021351,2]
[394404707,1763535038309,-500.0,0.00021373,2]
[394404709,1763535038319,-300.0,0.00021511,20]
[394404711,1763535038328,-300.0,0.00021511,20]
[394404713,1763535038337,-300.0,0.00021511,20]
[394404714,1763535038346,-300.0,0.00021511,20]
[394404716,1763535038355,-300.0,0.00021511,20]
[394404718,1763535038364,-495.0,0.00021515,2]
[394404720,1763535038373,-894.0,0.00021539,2]
[394404722,1763535038383,-894.0,0.0002161,2]
[394404724,1763535038392,-894.0,0.00021635,2]
[394404726,1763535038401,-894.0,0.0002164,2]
[394404728,1763535038410,-500.0,0.00021647,2]
[394404730,1763535038419,-894.0,0.00021647,2]
[394404732,1763535038428,-532.65714763,0.00021721,2]
[394404734,1763535038438,-1000.0,0.00021721,2]
[394404736,1763535038447,-1000.0,0.00021721,2]
[394404738,1763535038457,-1000.0,0.00021721,2]
[394404740,1763535038466,-1000.0,0.00021721,2]
[394404742,1763535038476,-1000.0,0.00021721,2]
[394404744,1763535038485,-1000.0,0.00021721,2]
[394404746,1763535038495,-504.69879942,0.00021721,2]
[394404748,1763535038505,-1000.0,0.00021721,2]
[394404750,1763535038514,-1000.0,0.00021721,2]
[394404752,1763535038523,-1001.77337171,0.00021721,2]
[394404754,1763535038532,-1000.0,0.00021721,2]
[394404756,1763535038541,-1000.0,0.00021721,2]
[394404758,1763535038550,-231.0,0.00021855,2]
[394404760,1763535038561,-894.0,0.00021873,2]
[394404762,1763535038570,-500.0,0.000219,2]
[394404764,1763535038579,-894.0,0.00021904,2]
[394404765,1763535038589,-894.0,0.00021912,2]
[394404767,1763535038598,-840.5469122,0.00021918,7]
[394404769,1763535038608,-500.0,0.00021921,2]
[394404771,1763535038617,-2151.0,0.0002193,2]
[394404773,1763535038626,-989.0,0.0002193,2]
[394404775,1763535038636,-630.0,0.0002193,2]
[394404777,1763535038645,-500.0,0.00021967,2]
[394404779,1763535038655,-105448.0,0.00022,7]
[394404781,1763535038664,-2199.39,0.00022,14]
[394404783,1763535038674,-16170.57,0.00022,2]
[394404785,1763535038683,-400.87691731,0.00022,7]
[394404787,1763535038693,-735.4,0.00022,7]
[394404789,1763535038703,-894.0,0.00022058,2]
[394404791,1763535038712,-500.0,0.0002206,2]
[394404793,1763535038722,-992.58501698,0.00022061,2]
[394404795,1763535038731,-652.75,0.00022071,2]
[394404797,1763535038741,-500.0,0.00022173,2]
[394404799,1763535038750,-506.7958722,0.00022173,2]
[394404801,1763535038760,-500.0,0.00022195,2]
[394404803,1763535038769,-894.0,0.00022231,2]
[394404805,1763535038778,-894.0,0.00022251,2]
[394404807,1763535038788,-1500.0,0.00022268,2]
[394404809,1763535038797,-673.15322364,0.00022268,2]
[394404811,1763535038808,-1500.0,0.00022268,2]
[394404813,1763535038817,-1500.0,0.00022268,2]
[394404815,1763535038826,-1500.0,0.00022268,2]
[394404817,1763535038835,-1514.91139396,0.00022268,2]
[394404819,1763535038845,-1500.0,0.00022268,2]
[394404821,1763535038855,-1500.0,0.00022268,2]
[394404823,1763535038864,-429.59951479,0.00022268,2]
[394404825,1763535038878,-1500.0,0.00022268,2]
[394404827,1763535038887,-894.0,0.00022349,2]
[394404829,1763535038897,-894.0,0.00022394,2]
[394404831,1763535038906,-502.36654671,0.00022448,2]
[394404833,1763535038917,-500.0,0.00022469,2]
[394404835,1763535038926,-1000.0,0.00022515,2]
[394404837,1763535038935,-894.0,0.00022537,2]
[394404839,1763535038944,-894.0,0.00022562,2]
[394404841,1763535038954,-500.0,0.00022575,2]
[394404843,1763535038964,-500.0,0.00022595,2]
[394404845,1763535038973,-894.0,0.00022596,2]
[394404847,1763535038982,-894.0,0.0002261,2]
[394404849,1763535038991,-220.0,0.00022644,15]
[394404850,1763535039000,-894.0,0.00022683,2]
[394404853,1763535039010,-470.80631433,0.00022684,2]
[394404854,1763535039020,-505.60972619,0.00022684,2]
[394404856,1763535039029,-501.18009364,0.00022684,2]
[394404858,1763535039038,-500.0,0.00022684,2]
[394404860,1763535039048,-500.0,0.00022684,2]
[394404861,1763535039060,-500.0,0.00022684,2]
[394404862,1763535039070,-500.0,0.00022684,2]
[394404863,1763535039079,-500.0,0.00022684,2]
[394404865,1763535039088,-165.48732767,0.00022684,2]
[394404866,1763535039098,-501.23064018,0.00022684,2]
[394404868,1763535039107,-500.0,0.00022684,2]
[394404870,1763535039116,-453.81206981,0.00022684,2]
[394404871,1763535039125,-500.28151942,0.00022684,2]
[394404874,1763535039135,-500.0,0.00022684,2]
[394404875,1763535039145,-172.55388676,0.00022684,2]
[394404877,1763535039154,-500.0,0.00022684,2]
[394404879,1763535039164,-500.0,0.00022684,2]
[394404882,1763535039174,-445.69250355,0.00022684,2]
[394404884,1763535039184,-517.6516235,0.00022684,2]
[394404885,1763535039193,-162.85610517,0.00022684,2]
[394404887,1763535039204,-158.67368353,0.00022684,2]
[394404889,1763535039214,-500.0,0.00022684,2]
[394404891,1763535039225,-500.0,0.00022684,2]
[394404893,1763535039235,-501.61884464,0.00022684,2]
[394404895,1763535039245,-500.0,0.00022684,2]
[394404898,1763535039256,-500.0,0.00022684,2]
[394404900,1763535039266,-500.0,0.00022684,2]
[394404902,1763535039276,-500.0,0.00022684,2]
[394404904,1763535039285,-500.0,0.00022684,2]
[394404906,1763535039294,-500.0,0.00022684,2]
[394404907,1763535039305,-500.0,0.00022684,2]
[394404909,1763535039315,-500.0,0.000227,2]
[394404912,1763535039324,-400.87691731,0.000227,7]
[394404913,1763535039333,-1000.0,0.00022721,2]
[394404915,1763535039343,-500.0,0.00022743,2]
[394404917,1763535039352,-2000.0,0.00022816,2]
[394404920,1763535039365,-1407.68093566,0.00022816,2]
[394404922,1763535039374,-162.01282537,0.00022816,2]
[394404923,1763535039383,-2000.0,0.00022816,2]